[Event "FIDE WCCC Open-10 2024"]
[Site "Montesilvano"]
[Date "2024.11.18"]
[Round "4.8"]
[White "Orsi, Andrea"]
[Black "Vydra, David"]
[Result "1-0"]
[ECO "B92"]
[WhiteElo "1728"]
[BlackElo "1615"]
[Annotator "NA RC"]
[PlyCount "115"]
[EventDate "2024.11.18"]
[EventType "swiss"]
[EventCountry "ITA"]
[SourceTitle "playchess.com"]
[Source "ChessBase"]
[SourceQuality "1"]
[TimeControl "5400+30"]

1. e4 {[%emt 0:00:06]} c5 {[%emt 0:00:23]} 2. Nf3 {[%emt 0:00:05]} d6 {[%emt 0:00:26]} 3. d4 {[%emt 0:00:04]} cxd4 {[%emt 0:00:10]} 4. Nxd4 {[%emt 0:00:05]} Nf6 {[%emt 0:00:48]} 5. Nc3 {[%emt 0:00:06]} a6 {[%emt 0:00:43]} 6. Be2 {[%emt 0:00:07]} e5 {[%emt 0:01:40]} 7. Nf3 {[%emt 0:00:15]} Be7 {[%emt 0:01:18]} 8. Bg5 {[%emt 0:02:24]} Nc6 {[%emt 0:02:49]} 9. Bxf6 {[%emt 0:07:31]} Bxf6 {[%emt 0:03:05]} 10. Qd2 {[%emt 0:04:48]} O-O {[%emt 0:02:29]} 11. Rd1 {[%emt 0:05:44]} Be6 {[%emt 0:10:49]} 12. O-O {[%emt 0:25:51]} Rc8 {[%emt 0:07:43]} 13. a3 {[%emt 0:25:33]} Qc7 {[%emt 0:13:27]} 14. Qxd6 {[%emt 0:15:46]} Qb6 {[%emt 0:04:34]} 15. Na4 {[%emt 0:05:09]} Qa5 {[%emt 0:01:20]} 16. b3 {[%emt 0:02:30]} Rfd8 {[%emt 0:00:27]} 17. Qc5 {[%emt 0:00:12]} b5 {[%emt 0:07:53]} 18. Nb6 {[%emt 0:02:40]} Be7 {[%emt 0:03:07]} 19. Qe3 {[%emt 0:00:09]} Rb8 {[%emt 0:02:59]} 20. Rxd8+ {[%emt 0:00:42]} Rxd8 {[%emt 0:00:14]} 21. b4 {[%emt 0:00:10]} Nxb4 {[%emt 0:00:47]} 22. axb4 {[%emt 0:00:08]} Qxb4 {[%emt 0:00:34]} 23. c3 {[%emt 0:00:28]} Qa3 {[%emt 0:00:38]} 24. Nd5 {[%emt 0:01:16]} Bc5 {[%emt 0:00:36]} 25. Qd3 {[%emt 0:00:24]} Qa5 {[%emt 0:02:00]} 26. Nxe5 {[%emt 0:00:25]} Rd6 {[%emt 0:01:04]} 27. Rd1 {[%emt 0:00:46]} f6 {[%emt 0:01:36]} 28. Nf3 {[%emt 0:00:25]} Qd8 {[%emt 0:02:27]} 29. c4 {[%emt 0:00:32]} bxc4 {[%emt 0:00:54]} 30. Qxc4 {[%emt 0:00:08]} Rc6 {[%emt 0:01:26]} 31. Qa4 {[%emt 0:00:53]} Bxd5 {[%emt 0:00:30]} 32. exd5 {[%emt 0:00:18]} Rd6 {[%emt 0:00:51]} 33. Bxa6 {[%emt 0:00:19]} Kf7 {[%emt 0:01:28]} 34. Bc4 {[%emt 0:00:15]} Qb6 {[%emt 0:00:10]} 35. Qb5 {[%emt 0:00:58]} Bxf2+ {[%emt 0:00:45]} 36. Kf1 {[%emt 0:00:22]} Qe3 {[%emt 0:00:16]} 37. Qb7+ {[%emt 0:00:25]} Kg6 {[%emt 0:00:03]} 38. Qb1+ {[%emt 0:00:38]} Kf7 {[%emt 0:00:05]} 39. Qd3 {[%emt 0:00:41]} Qb6 {[%emt 0:00:21]} 40. Nd4 {[%emt 0:00:36]} Qb2 {[%emt 0:00:46]} 41. Qd2 {[%emt 0:00:29]} Bxd4 {[%emt 0:01:11]} 42. Qxd4 {[%emt 0:00:18]} Qxd4 {[%emt 0:00:06]} 43. Rxd4 {[%emt 0:00:06]} Ke7 {[%emt 0:00:02]} 44. Bb5 {[%emt 0:00:25]} Rb6 {[%emt 0:00:07]} 45. Bc6 {[%emt 0:00:19]} Kd6 {[%emt 0:00:12]} 46. Re4 {[%emt 0:00:36]} Rb1+ {[%emt 0:00:04]} 47. Kf2 {[%emt 0:00:19]} Rb2+ {[%emt 0:00:03]} 48. Kf3 {[%emt 0:00:08]} Rb3+ {[%emt 0:00:20]} 49. Re3 {[%emt 0:00:11]} Rb2 {[%emt 0:00:04]} 50. Re6+ {[%emt 0:00:19]} Kc7 {[%emt 0:00:04]} 51. Re7+ {[%emt 0:00:06]} Kd6 {[%emt 0:00:10]} 52. Rxg7 {[%emt 0:00:06]} h5 {[%emt 0:00:07]} 53. Kf4 {[%emt 0:00:24]} Rf2+ {[%emt 0:00:14]} 54. Kg3 {[%emt 0:01:01]} Ra2 {[%emt 0:00:12]} 55. Rf7 {[%emt 0:01:21]} Ke5 {[%emt 0:00:05]} 56. Re7+ {[%emt 0:00:20]} Kd6 {[%emt 0:00:20]} 57. Re6+ {[%emt 0:00:21]} Kc7 {[%emt 0:00:04]} 58. Rxf6 {[%emt 0:00:10]} 1-0

[Event "FIDE WCCC Open-10 2024"]
[Site "Montesilvano"]
[Date "2024.11.18"]
[Round "4.9"]
[White "Anetov, Amirzhan"]
[Black "Shangin, Lev"]
[Result "1/2-1/2"]
[ECO "B86"]
[WhiteElo "1767"]
[BlackElo "2056"]
[Annotator "RC"]
[PlyCount "163"]
[EventDate "2024.11.18"]
[EventType "swiss"]
[EventCountry "ITA"]
[SourceTitle "playchess.com"]
[Source "ChessBase"]
[SourceQuality "1"]
[TimeControl "5400+30"]

1. e4 {[%emt 0:00:02]} c5 {[%emt 0:00:23]} 2. Nf3 {[%emt 0:00:03]} d6 {[%emt 0:00:29]} 3. d4 {[%emt 0:00:05]} cxd4 {[%emt 0:00:29]} 4. Nxd4 {[%emt 0:00:03]} Nf6 {[%emt 0:00:23]} 5. Nc3 {[%emt 0:00:04]} a6 {[%emt 0:00:03]} 6. Bc4 {[%emt 0:00:04]} e6 {[%emt 0:04:18]} 7. Bb3 {[%emt 0:00:04]} Be7 {[%emt 0:04:03]} 8. Bg5 {[%emt 0:19:33]} Qb6 {[%emt 0:11:17]} 9. Be3 {[%emt 0:03:24]} Qc7 {[%emt 0:01:22]} 10. g4 {[%emt 0:01:43]} h6 {[%emt 0:07:50]} 11. Qe2 {[%emt 0:07:45]} Nc6 {[%emt 0:04:16]} 12. Nxc6 {[%emt 0:03:00]} bxc6 {[%emt 0:00:58]} 13. O-O-O {[%emt 0:00:37]} d5 {[%emt 0:07:29]} 14. a3 {[%emt 0:18:44]} Rb8 {[%emt 0:05:00]} 15. h4 {[%emt 0:07:20]} d4 {[%emt 0:10:17]} 16. Bxd4 {[%emt 0:09:47]} e5 {[%emt 0:01:15]} 17. Be3 {[%emt 0:00:23]} Nxg4 {[%emt 0:03:02]} 18. Rhg1 {[%emt 0:04:15]} h5 {[%emt 0:13:26]} 19. f3 {[%emt 0:04:36]} Nxe3 {[%emt 0:00:47]} 20. Qxe3 {[%emt 0:00:03]} g6 {[%emt 0:01:25]} 21. f4 {[%emt 0:01:21]} exf4 {[%emt 0:02:33]} 22. Qd4 {[%emt 0:00:04]} Rf8 {[%emt 0:02:46]} 23. Qg7 {[%emt 0:01:37]} Bg4 {[%emt 0:01:30]} 24. Ba4 {[%emt 0:06:03]} Rb5 {[%emt 0:12:26]} 25. Bxb5 {[%emt 0:03:59]} axb5 {[%emt 0:00:05]} 26. Rd2 {[%emt 0:00:53]} Bc5 {[%emt 0:00:51]} 27. Rgg2 {[%emt 0:01:52]} f3 {[%emt 0:00:20]} 28. Rh2 {[%emt 0:00:04]} Qf4 {[%emt 0:02:48]} 29. Nd1 {[%emt 0:00:24]} Bg1 {[%emt 0:00:51]} 30. Rh1 {[%emt 0:01:58]} Bb6 {[%emt 0:01:36]} 31. Qc3 {[%emt 0:00:13]} Ke7 {[%emt 0:00:32]} 32. Qb4+ {[%emt 0:01:32]} c5 {[%emt 0:00:27]} 33. Qxb5 {[%emt 0:00:09]} Rd8 {[%emt 0:00:04]} 34. Rhh2 {[%emt 0:00:07]} Bc7 {[%emt 0:01:05]} 35. Qxc5+ {[%emt 0:01:07]} Kf6 {[%emt 0:00:08]} 36. Ne3 {[%emt 0:00:44]} Rxd2 {[%emt 0:01:24]} 37. Rxd2 {[%emt 0:00:04]} Kg7 {[%emt 0:00:21]} 38. Nd5 {[%emt 0:01:11]} Qxe4 {[%emt 0:00:40]} 39. Qxc7 {[%emt 0:00:55]} Qe1+ {[%emt 0:00:28]} 40. Rd1 {[%emt 0:00:04]} Qxd1+ {[%emt 0:00:10]} 41. Kxd1 {[%emt 0:00:05]} f2+ {[%emt 0:00:02]} 42. Kd2 {[%emt 0:00:05]} f1=Q {[%emt 0:00:04]} 43. Qe5+ {[%emt 0:00:23]} Kh7 {[%emt 0:00:38]} 44. Nf6+ {[%emt 0:01:02]} Kh6 {[%emt 0:00:05]} 45. Qe3+ {[%emt 0:00:15]} Kg7 {[%emt 0:00:09]} 46. Nxg4 {[%emt 0:00:08]} hxg4 {[%emt 0:00:21]} 47. Qd4+ {[%emt 0:00:04]} Kh7 {[%emt 0:00:19]} 48. Qxg4 {[%emt 0:00:21]} Qf2+ {[%emt 0:00:02]} 49. Kc3 {[%emt 0:00:18]} Qc5+ {[%emt 0:00:17]} 50. Qc4 {[%emt 0:01:10]} Qe3+ {[%emt 0:00:11]} 51. Kb4 {[%emt 0:01:43]} f5 {[%emt 0:02:03]} 52. Qf7+ {[%emt 0:03:40]} Kh6 {[%emt 0:00:32]} 53. h5 {[%emt 0:00:07]} Kxh5 {[%emt 0:00:36]} 54. Qd5 {[%emt 0:00:40]} Kg4 {[%emt 0:01:16]} 55. Qg2+ {[%emt 0:00:31]} Qg3 {[%emt 0:01:01]} 56. Qe2+ {[%emt 0:00:47]} Kg5 {[%emt 0:00:29]} 57. c4 {[%emt 0:00:23]} f4 {[%emt 0:00:30]} 58. Qe5+ {[%emt 0:00:05]} Kg4 {[%emt 0:00:15]} 59. c5 {[%emt 0:00:05]} Qe3 {[%emt 0:00:58]} 60. Qf6 {[%emt 0:00:23]} g5 {[%emt 0:00:14]} 61. c6 {[%emt 0:00:06]} Qb6+ {[%emt 0:00:15]} 62. Kc4 {[%emt 0:00:24]} f3 {[%emt 0:00:28]} 63. Qd4+ {[%emt 0:00:33]} Qxd4+ {[%emt 0:00:06]} 64. Kxd4 {[%emt 0:00:05]} f2 {[%emt 0:00:08]} 65. c7 {[%emt 0:00:07]} f1=Q {[%emt 0:00:02]} 66. c8=Q+ {[%emt 0:00:04]} Kg3 {[%emt 0:00:19]} 67. Qc3+ {[%emt 0:00:56]} Kh4 {[%emt 0:00:33]} 68. Kc5 {[%emt 0:02:12]} Qf8+ {[%emt 0:00:57]} 69. Kb5 {[%emt 0:00:38]} g4 {[%emt 0:00:18]} 70. a4 {[%emt 0:01:37]} g3 {[%emt 0:01:09]} 71. Qd4+ {[%emt 0:00:06]} Kh3 {[%emt 0:00:13]} 72. Qd7+ {[%emt 0:00:06]} Kh2 {[%emt 0:00:19]} 73. Qc7 {[%emt 0:00:51]} Qf1+ {[%emt 0:00:38]} 74. Kb4 {[%emt 0:00:23]} Qe1+ {[%emt 0:00:07]} 75. Ka3 {[%emt 0:00:14]} Qe3+ {[%emt 0:00:27]} 76. b3 {[%emt 0:00:22]} Kg1 {[%emt 0:00:27]} 77. a5 {[%emt 0:00:34]} g2 {[%emt 0:00:43]} 78. a6 {[%emt 0:00:11]} Kf2 {[%emt 0:00:40]} 79. Qc2+ {[%emt 0:00:59]} Qe2 {[%emt 0:00:47]} 80. Qf5+ {[%emt 0:00:29]} Ke1 {[%emt 0:00:35]} 81. Qa5+ {[%emt 0:00:37]} Kf2 {[%emt 0:00:46]} 82. Qf5+ {[%emt 0:01:45]} 1/2-1/2

[Event "FIDE WCCC Open-10 2024"]
[Site "Montesilvano"]
[Date "2024.11.18"]
[Round "4.9"]
[White "Ostapenko, Volodymyr"]
[Black "Munoz Padilla, Andres"]
[Result "0-1"]
[ECO "B21"]
[WhiteElo "1720"]
[BlackElo "1604"]
[Annotator "NA RC"]
[PlyCount "105"]
[EventDate "2024.11.18"]
[EventType "swiss"]
[EventCountry "ITA"]
[SourceTitle "playchess.com"]
[Source "ChessBase"]
[SourceQuality "1"]
[TimeControl "5400+30"]

1. e4 {[%emt 0:00:19]} c5 {[%emt 0:00:14]} 2. d4 {[%emt 0:00:03]} cxd4 {[%emt 0:00:17]} 3. c3 {[%emt 0:00:15]} dxc3 {[%emt 0:00:24]} 4. Nxc3 {[%emt 0:00:03]} Nc6 {[%emt 0:00:34]} 5. Bc4 {[%emt 0:00:51]} e6 {[%emt 0:00:42]} 6. Nf3 {[%emt 0:00:07]} a6 {[%emt 0:00:14]} 7. O-O {[%emt 0:01:10]} b5 {[%emt 0:01:11]} 8. Bb3 {[%emt 0:00:41]} Bb7 {[%emt 0:00:57]} 9. Qe2 {[%emt 0:01:43]} Nge7 {[%emt 0:00:35]} 10. Rd1 {[%emt 0:00:50]} Ng6 {[%emt 0:03:14]} 11. Bg5 {[%emt 0:05:17]} Be7 {[%emt 0:00:08]} 12. Bxe7 {[%emt 0:00:28]} Qxe7 {[%emt 0:00:18]} 13. Rac1 {[%emt 0:01:44]} O-O {[%emt 0:07:10]} 14. e5 {[%emt 0:06:26]} Na5 {[%emt 0:05:14]} 15. Bc2 {[%emt 0:06:19]} Bxf3 {[%emt 0:03:15]} 16. Qxf3 {[%emt 0:00:58]} Nxe5 {[%emt 0:00:15]} 17. Qg3 {[%emt 0:03:18]} Ng6 {[%emt 0:00:25]} 18. Ne4 {[%emt 0:05:30]} d5 {[%emt 0:07:21]} 19. Ng5 {[%emt 0:03:29]} Qf6 {[%emt 0:06:30]} 20. b3 {[%emt 0:04:42]} h6 {[%emt 0:02:06]} 21. Nh3 {[%emt 0:00:38]} Rac8 {[%emt 0:14:09]} 22. Bxg6 {[%emt 0:01:20]} Rxc1 {[%emt 0:00:10]} 23. Rxc1 {[%emt 0:00:08]} Qxg6 {[%emt 0:00:09]} 24. Qc7 {[%emt 0:00:24]} Nxb3 {[%emt 0:00:59]} 25. axb3 {[%emt 0:01:16]} d4 {[%emt 0:00:33]} 26. Qd6 {[%emt 0:01:13]} Qd3 {[%emt 0:01:21]} 27. g3 {[%emt 0:03:16]} Qd2 {[%emt 0:01:58]} 28. Ra1 {[%emt 0:01:36]} d3 {[%emt 0:00:46]} 29. Nf4 {[%emt 0:02:24]} Qb2 {[%emt 0:00:46]} 30. Rd1 {[%emt 0:01:15]} Qxb3 {[%emt 0:00:08]} 31. Rxd3 {[%emt 0:00:26]} Qb1+ {[%emt 0:00:23]} 32. Rd1 {[%emt 0:00:51]} Qa2 {[%emt 0:00:10]} 33. Nd3 {[%emt 0:00:44]} a5 {[%emt 0:01:54]} 34. Qe5 {[%emt 0:01:49]} Qc2 {[%emt 0:00:23]} 35. Nb2 {[%emt 0:04:29]} a4 {[%emt 0:00:18]} 36. Ra1 {[%emt 0:00:29]} Qb3 {[%emt 0:00:47]} 37. Nd1 {[%emt 0:01:25]} a3 {[%emt 0:00:20]} 38. Qd4 {[%emt 0:02:32]} b4 {[%emt 0:01:56]} 39. Qe4 {[%emt 0:02:16]} Rd8 {[%emt 0:00:38]} 40. Ne3 {[%emt 0:01:12]} a2 {[%emt 0:00:09]} 41. Nc2 {[%emt 0:02:37]} Qb1+ {[%emt 0:00:18]} 42. Kg2 {[%emt 0:00:44]} b3 {[%emt 0:00:32]} 43. Qh4 {[%emt 0:00:43]} g5 {[%emt 0:00:33]} 44. Qxh6 {[%emt 0:00:15]} Rd5 {[%emt 0:00:36]} 45. Ne3 {[%emt 0:00:36]} Qxa1 {[%emt 0:00:08]} 46. Nxd5 {[%emt 0:00:06]} exd5 {[%emt 0:00:12]} 47. Qxg5+ {[%emt 0:00:04]} Qg7 {[%emt 0:00:06]} 48. Qd8+ {[%emt 0:35:29]} Kh7 {[%emt 0:43:04]} 49. Qh4+ {[%emt 0:00:00]} Qh6 {[%emt 0:00:00]} 50. Qd4 {[%emt 0:00:00]} Qe6 {[%emt 0:00:00]} 51. Qh4+ {[%emt 0:00:00]} Kg8 {[%emt 0:00:00]} 52. Qg5+ {[%emt 0:00:00]} Qg6 {[%emt 0:00:00]} 53. Qe5 {[%emt 0:00:00]} 0-1

[Event "FIDE WCCC Open-10 2024"]
[Site "Montesilvano"]
[Date "2024.11.18"]
[Round "4.10"]
[White "Sahin, Yusuf Kerem"]
[Black "Tamiolakis, Grigorios"]
[Result "0-1"]
[ECO "D27"]
[WhiteElo "1720"]
[BlackElo "1591"]
[Annotator "NA"]
[PlyCount "79"]
[EventDate "2024.11.18"]
[EventType "swiss"]
[EventCountry "ITA"]
[SourceTitle "playchess.com"]
[Source "ChessBase"]
[SourceQuality "1"]
[TimeControl "5400+30"]

1. d4 {[%emt 0:00:04]} d5 {[%emt 0:00:10]} 2. c4 {[%emt 0:00:08]} dxc4 {[%emt 0:00:07]} 3. e3 {[%emt 0:00:17]} e6 {[%emt 0:00:13]} 4. Bxc4 {[%emt 0:00:17]} Nf6 {[%emt 0:00:10]} 5. Nf3 {[%emt 0:00:25]} a6 {[%emt 0:00:11]} 6. a4 {[%emt 0:00:28]} c5 {[%emt 0:00:10]} 7. O-O {[%emt 0:00:35]} cxd4 {[%emt 0:00:25]} 8. Nxd4 {[%emt 0:00:57]} Be7 {[%emt 0:01:16]} 9. Nc3 {[%emt 0:00:56]} O-O {[%emt 0:03:29]} 10. Qc2 {[%emt 0:01:42]} Qc7 {[%emt 0:00:32]} 11. b3 {[%emt 0:01:26]} Nc6 {[%emt 0:01:29]} 12. Rd1 {[%emt 0:02:47]} Nxd4 {[%emt 0:05:16]} 13. Rxd4 {[%emt 0:00:17]} b6 {[%emt 0:00:47]} 14. Bb2 {[%emt 0:01:24]} Bb7 {[%emt 0:00:12]} 15. Rc1 {[%emt 0:01:27]} Rfd8 {[%emt 0:07:16]} 16. Ne2 {[%emt 0:02:48]} Qc6 {[%emt 0:20:41]} 17. f3 {[%emt 0:07:09]} Rac8 {[%emt 0:07:44]} 18. Rh4 {[%emt 0:05:32]} h6 {[%emt 0:05:50]} 19. Nd4 {[%emt 0:02:38]} Qd7 {[%emt 0:02:59]} 20. Qf2 {[%emt 0:05:09]} Nd5 {[%emt 0:18:26]} 21. Rg4 {[%emt 0:17:58]} Nf6 {[%emt 0:11:29]} 22. Rh4 {[%emt 0:11:17]} Nd5 {[%emt 0:09:03]} 23. Rh3 {[%emt 0:00:19]} Nf6 {[%emt 0:00:56]} 24. Kh1 {[%emt 0:03:24]} Nd5 {[%emt 0:00:54]} 25. Re1 {[%emt 0:03:27]} Bf6 {[%emt 0:00:35]} 26. Qg3 {[%emt 0:01:21]} Kh8 {[%emt 0:00:22]} 27. e4 {[%emt 0:02:32]} Nc7 {[%emt 0:00:35]} 28. e5 {[%emt 0:00:40]} Be7 {[%emt 0:00:21]} 29. Nf5 {[%emt 0:02:26]} Bf8 {[%emt 0:00:41]} 30. Nd6 {[%emt 0:00:17]} Rb8 {[%emt 0:00:18]} 31. Qf4 {[%emt 0:01:10]} Re8 {[%emt 0:01:15]} 32. Rd1 {[%emt 0:08:32]} Bd5 {[%emt 0:01:05]} 33. Bxd5 {[%emt 0:00:29]} Nxd5 {[%emt 0:00:06]} 34. Qg3 {[%emt 0:05:26]} Red8 {[%emt 0:00:28]} 35. Qh4 {[%emt 0:01:43]} Kg8 {[%emt 0:01:05]} 36. Rg3 {[%emt 0:00:28]} Kh7 {[%emt 0:00:30]} 37. Qe4+ {[%emt 0:04:18]} Kh8 {[%emt 0:00:27]} 38. Qh4 {[%emt 0:03:31]} Kh7 {[%emt 0:00:38]} 39. Ne4 {[%emt 0:00:49]} Qe7 {[%emt 0:00:44]} 40. Rg5 {[%emt 0:02:30]} 0-1

[Event "FIDE WCCC Open-10 2024"]
[Site "Montesilvano"]
[Date "2024.11.18"]
[Round "4.10"]
[White "Burba, Mikita"]
[Black "Bolashakov, Nurali"]
[Result "0-1"]
[ECO "C42"]
[WhiteElo "1528"]
[BlackElo "2005"]
[Annotator "RC"]
[PlyCount "94"]
[EventDate "2024.11.18"]
[EventType "swiss"]
[EventCountry "ITA"]
[SourceTitle "playchess.com"]
[Source "ChessBase"]
[SourceQuality "1"]
[TimeControl "5400+30"]

1. e4 {[%emt 0:00:02]} e5 {[%emt 0:00:22]} 2. Nf3 {[%emt 0:00:09]} Nf6 {[%emt 0:00:03]} 3. Nxe5 {[%emt 0:00:14]} d6 {[%emt 0:00:31]} 4. Nf3 {[%emt 0:01:33]} Nxe4 {[%emt 0:00:40]} 5. d4 {[%emt 0:02:56]} d5 {[%emt 0:00:08]} 6. Bd3 {[%emt 0:03:40]} Be7 {[%emt 0:01:27]} 7. h3 {[%emt 0:03:01]} O-O {[%emt 0:01:44]} 8. O-O {[%emt 0:00:29]} Bf5 {[%emt 0:01:18]} 9. Re1 {[%emt 0:03:34]} Nd7 {[%emt 0:04:16]} 10. Bf4 {[%emt 0:06:38]} Ndf6 {[%emt 0:03:21]} 11. c3 {[%emt 0:04:55]} Re8 {[%emt 0:02:25]} 12. Qc2 {[%emt 0:01:40]} c5 {[%emt 0:07:59]} 13. dxc5 {[%emt 0:16:54]} Bxc5 {[%emt 0:00:13]} 14. Nd4 {[%emt 0:01:20]} Bg6 {[%emt 0:01:46]} 15. Nd2 {[%emt 0:04:46]} Nxd2 {[%emt 0:04:29]} 16. Qxd2 {[%emt 0:02:22]} Ne4 {[%emt 0:01:42]} 17. Qd1 {[%emt 0:05:30]} Qb6 {[%emt 0:04:34]} 18. Bxe4 {[%emt 0:12:12]} Bxe4 {[%emt 0:00:50]} 19. Qd2 {[%emt 0:04:58]} Rac8 {[%emt 0:12:24]} 20. Be3 {[%emt 0:06:54]} Qg6 {[%emt 0:03:34]} 21. g3 {[%emt 0:03:44]} Re5 {[%emt 0:06:58]} 22. Ne2 {[%emt 0:03:00]} Qh5 {[%emt 0:05:33]} 23. Kh2 {[%emt 0:05:08]} Qf3 {[%emt 0:03:57]} 24. Rg1 {[%emt 0:01:11]} Bxe3 {[%emt 0:13:20]} 25. Qxe3 {[%emt 0:00:08]} Qxe3 {[%emt 0:00:06]} 26. fxe3 {[%emt 0:00:07]} Bg6 {[%emt 0:00:13]} 27. Nf4 {[%emt 0:01:01]} Rxe3 {[%emt 0:00:08]} 28. Nxg6 {[%emt 0:00:37]} hxg6 {[%emt 0:00:09]} 29. Rad1 {[%emt 0:00:29]} Rce8 {[%emt 0:00:27]} 30. Rd2 {[%emt 0:02:44]} f5 {[%emt 0:01:52]} 31. Rgg2 {[%emt 0:00:20]} R8e5 {[%emt 0:00:17]} 32. Rgf2 {[%emt 0:01:13]} Kf7 {[%emt 0:00:43]} 33. Kg2 {[%emt 0:00:26]} g5 {[%emt 0:00:58]} 34. Rd4 {[%emt 0:00:45]} R3e4 {[%emt 0:01:00]} 35. Rd3 {[%emt 0:01:12]} Ke6 {[%emt 0:00:42]} 36. Rdd2 {[%emt 0:01:06]} f4 {[%emt 0:00:44]} 37. g4 {[%emt 0:00:42]} Re3 {[%emt 0:00:48]} 38. Rf3 {[%emt 0:00:49]} R5e4 {[%emt 0:01:41]} 39. Rxe3 {[%emt 0:00:51]} fxe3 {[%emt 0:00:48]} 40. Re2 {[%emt 0:00:21]} Ke5 {[%emt 0:00:14]} 41. Re1 {[%emt 0:00:35]} d4 {[%emt 0:02:15]} 42. cxd4+ {[%emt 0:00:10]} Kxd4 {[%emt 0:00:08]} 43. Rd1+ {[%emt 0:00:36]} Kc4 {[%emt 0:00:19]} 44. Kf3 {[%emt 0:00:25]} e2 {[%emt 0:00:32]} 45. Re1 {[%emt 0:00:21]} Kd3 {[%emt 0:00:08]} 46. a3 {[%emt 0:00:45]} Rf4+ {[%emt 0:00:08]} 47. Kg3 {[%emt 0:00:16]} Rf1 {[%emt 0:00:08]} 0-1

[Event "FIDE WCCC Open-10 2024"]
[Site "Montesilvano"]
[Date "2024.11.18"]
[Round "4.11"]
[White "Ling, Chenxuan"]
[Black "Mirzhanov, Arlan"]
[Result "1/2-1/2"]
[ECO "E71"]
[WhiteElo "1967"]
[BlackElo "1721"]
[Annotator "RC"]
[PlyCount "58"]
[EventDate "2024.11.18"]
[EventType "swiss"]
[EventCountry "ITA"]
[SourceTitle "playchess.com"]
[Source "ChessBase"]
[SourceQuality "1"]
[TimeControl "5400+30"]

1. d4 {[%emt 0:00:27]} Nf6 {[%emt 0:00:22]} 2. c4 {[%emt 0:00:11]} g6 {[%emt 0:00:15]} 3. Nc3 {[%emt 0:00:20]} Bg7 {[%emt 0:00:25]} 4. e4 {[%emt 0:03:20]} d6 {[%emt 0:00:07]} 5. h3 {[%emt 0:00:12]} O-O {[%emt 0:00:10]} 6. Be3 {[%emt 0:00:04]} e5 {[%emt 0:01:40]} 7. d5 {[%emt 0:00:24]} a5 {[%emt 0:01:37]} 8. g4 {[%emt 0:01:48]} Na6 {[%emt 0:01:11]} 9. Nge2 {[%emt 0:00:17]} c6 {[%emt 0:07:09]} 10. Ng3 {[%emt 0:05:32]} cxd5 {[%emt 0:09:06]} 11. Nxd5 {[%emt 0:03:06]} Nxd5 {[%emt 0:00:10]} 12. cxd5 {[%emt 0:00:02]} Bd7 {[%emt 0:03:44]} 13. h4 {[%emt 0:04:08]} Rc8 {[%emt 0:03:11]} 14. Bxa6 {[%emt 0:18:33]} bxa6 {[%emt 0:00:16]} 15. f3 {[%emt 0:01:58]} a4 {[%emt 0:07:32]} 16. Qd2 {[%emt 0:06:32]} Qc7 {[%emt 0:08:08]} 17. Kf2 {[%emt 0:04:35]} Qc2 {[%emt 0:01:29]} 18. Rac1 {[%emt 0:01:16]} Qxd2+ {[%emt 0:00:08]} 19. Bxd2 {[%emt 0:00:01]} Bf6 {[%emt 0:02:06]} 20. Bb4 {[%emt 0:07:04]} Be7 {[%emt 0:00:46]} 21. a3 {[%emt 0:05:15]} h6 {[%emt 0:10:40]} 22. Kg2 {[%emt 0:04:43]} Bb5 {[%emt 0:02:30]} 23. Bd2 {[%emt 0:02:26]} Kg7 {[%emt 0:00:54]} 24. h5 {[%emt 0:00:45]} Bg5 {[%emt 0:00:34]} 25. Bxg5 {[%emt 0:01:22]} hxg5 {[%emt 0:00:03]} 26. Kf2 {[%emt 0:00:56]} Bd7 {[%emt 0:03:21]} 27. Rhd1 {[%emt 0:07:55]} Rfd8 {[%emt 0:01:51]} 28. hxg6 {[%emt 0:02:30]} fxg6 {[%emt 0:00:34]} 29. Ne2 {[%emt 0:00:55]} Kf6 {[%emt 0:02:16]} 1/2-1/2

[Event "FIDE WCCC Open-10 2024"]
[Site "Montesilvano"]
[Date "2024.11.18"]
[Round "4.12"]
[White "Andre, Tomas"]
[Black "Aitmukhanov, Arsen"]
[Result "1-0"]
[ECO "B22"]
[WhiteElo "1928"]
[BlackElo "1579"]
[Annotator "RC"]
[PlyCount "41"]
[EventDate "2024.11.18"]
[EventType "swiss"]
[EventCountry "ITA"]
[SourceTitle "playchess.com"]
[Source "ChessBase"]
[SourceQuality "1"]
[TimeControl "5400+30"]

1. e4 {[%emt 0:00:33]} c5 {[%emt 0:00:05]} 2. d4 {[%emt 0:00:22]} cxd4 {[%emt 0:00:08]} 3. c3 {[%emt 0:00:05]} Nf6 {[%emt 0:00:05]} 4. e5 {[%emt 0:00:09]} Nd5 {[%emt 0:00:05]} 5. Bc4 {[%emt 0:00:11]} Nb6 {[%emt 0:00:25]} 6. Bb3 {[%emt 0:00:13]} dxc3 {[%emt 0:01:38]} 7. Nxc3 {[%emt 0:00:14]} Nc6 {[%emt 0:05:29]} 8. Nf3 {[%emt 0:01:24]} Na5 {[%emt 0:03:47]} 9. Bc2 {[%emt 0:15:52]} g6 {[%emt 0:01:34]} 10. h4 {[%emt 0:05:15]} Bg7 {[%emt 0:15:09]} 11. h5 {[%emt 0:00:40]} O-O {[%emt 0:17:45]} 12. Ng5 {[%emt 0:03:04]} Qc7 {[%emt 0:17:00]} 13. f4 {[%emt 0:03:08]} f5 {[%emt 0:05:36]} 14. Nxh7 {[%emt 0:03:33]} Kxh7 {[%emt 0:00:09]} 15. hxg6+ {[%emt 0:00:09]} Kg8 {[%emt 0:00:07]} 16. Rh8+ {[%emt 0:00:48]} Bxh8 {[%emt 0:00:22]} 17. Qh5 {[%emt 0:00:04]} Rf7 {[%emt 0:00:26]} 18. gxf7+ {[%emt 0:00:03]} Kf8 {[%emt 0:00:09]} 19. Qh7 {[%emt 0:00:37]} e6 {[%emt 0:00:08]} 20. Qg8+ {[%emt 0:00:09]} Ke7 {[%emt 0:00:03]} 21. Qe8# {[%emt 0:00:17]} 1-0